[Event "Polish University-ch Women 2024"]
[Site "Lublin"]
[Date "2024.02.24"]
[Round "6.9"]
[White "Harazinska, Magdalena"]
[Black "Switala, Karina"]
[Result "1-0"]
[ECO "A95"]
[WhiteElo "1950"]
[BlackElo "1337"]
[Annotator "NA RC"]
[PlyCount "53"]
[EventDate "2024.02.22"]
[EventType "swiss"]
[EventCountry "POL"]
[SourceTitle "playchess.com"]
[Source "ChessBase"]
[SourceQuality "1"]
[TimeControl "600+3"]

1. d4 {[%emt 0:00:02]} d5 {[%emt 0:00:01]} 2. c4 {[%emt 0:00:01]} e6 {[%emt 0:00:00]} 3. Nc3 {[%emt 0:00:01]} f5 {[%emt 0:00:02]} 4. g3 {[%emt 0:00:07]} c6 {[%emt 0:00:00]} 5. Nf3 {[%emt 0:00:13]} Nf6 {[%emt 0:00:02]} 6. b3 {[%emt 0:00:05]} Be7 {[%emt 0:00:03]} 7. Bg2 {[%emt 0:00:02]} O-O {[%emt 0:00:02]} 8. O-O {[%emt 0:00:02]} Ne4 {[%emt 0:00:05]} 9. Bb2 {[%emt 0:00:03]} Nd7 {[%emt 0:00:17]} 10. Nd2 {[%emt 0:00:31]} Bg5 {[%emt 0:00:57]} 11. Ndxe4 {[%emt 0:00:47]} fxe4 {[%emt 0:00:07]} 12. e3 {[%emt 0:00:12]} Be7 {[%emt 0:00:29]} 13. f3 {[%emt 0:00:28]} exf3 {[%emt 0:01:12]} 14. Bxf3 {[%emt 0:00:12]} Nf6 {[%emt 0:00:20]} 15. Qe2 {[%emt 0:00:27]} Qb6 {[%emt 0:00:33]} 16. Rad1 {[%emt 0:00:46]} Bb4 {[%emt 0:01:09]} 17. Kg2 {[%emt 0:00:40]} Bd7 {[%emt 0:01:33]} 18. e4 {[%emt 0:00:41]} dxe4 {[%emt 0:00:49]} 19. Nxe4 {[%emt 0:00:12]} Nxe4 {[%emt 0:01:34]} 20. Bxe4 {[%emt 0:00:04]} Qc7 {[%emt 0:00:12]} 21. Qh5 {[%emt 0:01:05]} g6 {[%emt 0:00:11]} 22. Bxg6 {[%emt 0:00:04]} Be8 {[%emt 0:00:01]} 23. Bxe8 {[%emt 0:01:01]} Raxe8 {[%emt 0:00:20]} 24. d5 {[%emt 0:00:38]} e5 {[%emt 0:00:06]} 25. Rxf8+ {[%emt 0:00:11]} Bxf8 {[%emt 0:00:05]} 26. Qxe8 {[%emt 0:00:02]} cxd5 {[%emt 0:00:20]} 27. Bxe5 {[%emt 0:00:08]} 1-0

[Event "Polish University-ch Women 2024"]
[Site "Lublin"]
[Date "2024.02.24"]
[Round "6.10"]
[White "Dmochowska, Agnieszka"]
[Black "Orlik, Sandra"]
[Result "1/2-1/2"]
[ECO "B22"]
[WhiteElo "2001"]
[BlackElo "1836"]
[Annotator "RC"]
[PlyCount "208"]
[EventDate "2024.02.22"]
[EventType "swiss"]
[EventCountry "POL"]
[SourceTitle "playchess.com"]
[Source "ChessBase"]
[SourceQuality "1"]
[TimeControl "600+3"]

1. e4 {[%emt 0:00:25]} c5 {[%emt 0:01:26]} 2. Nf3 {[%emt 0:00:17]} Nc6 {[%emt 0:00:02]} 3. c3 {[%emt 0:00:07]} e5 {[%emt 0:00:18]} 4. Bc4 {[%emt 0:00:24]} h6 {[%emt 0:00:25]} 5. O-O {[%emt 0:00:15]} Nf6 {[%emt 0:00:04]} 6. Re1 {[%emt 0:01:09]} d6 {[%emt 0:00:03]} 7. h3 {[%emt 0:00:30]} Be7 {[%emt 0:00:03]} 8. d4 {[%emt 0:00:06]} cxd4 {[%emt 0:00:03]} 9. cxd4 {[%emt 0:00:01]} exd4 {[%emt 0:00:11]} 10. Nxd4 {[%emt 0:00:03]} Nxd4 {[%emt 0:00:06]} 11. Qxd4 {[%emt 0:00:02]} O-O {[%emt 0:00:04]} 12. Nc3 {[%emt 0:00:05]} Be6 {[%emt 0:00:58]} 13. Bd5 {[%emt 0:02:35]} Bxd5 {[%emt 0:00:06]} 14. Nxd5 {[%emt 0:00:01]} Nxd5 {[%emt 0:00:02]} 15. Qxd5 {[%emt 0:00:02]} Rb8 {[%emt 0:00:24]} 16. Bf4 {[%emt 0:00:13]} Qb6 {[%emt 0:00:10]} 17. b3 {[%emt 0:00:08]} Rfd8 {[%emt 0:00:07]} 18. Rad1 {[%emt 0:00:57]} Qc6 {[%emt 0:00:12]} 19. Qh5 {[%emt 0:00:14]} Rbc8 {[%emt 0:01:49]} 20. Rd3 {[%emt 0:00:43]} Qc2 {[%emt 0:00:39]} 21. Rg3 {[%emt 0:01:18]} Kf8 {[%emt 0:00:07]} 22. Qg4 {[%emt 0:00:36]} Bf6 {[%emt 0:00:19]} 23. e5 {[%emt 0:00:42]} dxe5 {[%emt 0:00:05]} 24. Bxe5 {[%emt 0:00:01]} Bxe5 {[%emt 0:00:07]} 25. Rxe5 {[%emt 0:00:01]} Qg6 {[%emt 0:00:42]} 26. Qxg6 {[%emt 0:00:16]} fxg6 {[%emt 0:00:03]} 27. Rxg6 {[%emt 0:00:01]} Rc2 {[%emt 0:00:17]} 28. Rf5+ {[%emt 0:00:01]} Kg8 {[%emt 0:00:04]} 29. Rb5 {[%emt 0:00:05]} b6 {[%emt 0:00:13]} 30. a4 {[%emt 0:00:02]} Rdd2 {[%emt 0:00:05]} 31. Rf5 {[%emt 0:00:01]} Rb2 {[%emt 0:00:07]} 32. Rg3 {[%emt 0:00:03]} Rd4 {[%emt 0:00:09]} 33. Re5 {[%emt 0:00:05]} Rd7 {[%emt 0:00:04]} 34. h4 {[%emt 0:00:07]} Rf7 {[%emt 0:00:04]} 35. f3 {[%emt 0:00:02]} Rxb3 {[%emt 0:00:04]} 36. h5 {[%emt 0:00:01]} Ra3 {[%emt 0:00:04]} 37. Re4 {[%emt 0:00:01]} Rb3 {[%emt 0:00:14]} 38. Rg6 {[%emt 0:00:03]} Kh7 {[%emt 0:00:06]} 39. Kf2 {[%emt 0:00:09]} a5 {[%emt 0:00:06]} 40. Ree6 {[%emt 0:00:03]} Rb7 {[%emt 0:00:03]} 41. g4 {[%emt 0:00:02]} b5 {[%emt 0:00:04]} 42. axb5 {[%emt 0:00:04]} R3xb5 {[%emt 0:00:02]} 43. Ra6 {[%emt 0:00:01]} Rd5 {[%emt 0:00:11]} 44. Rge6 {[%emt 0:00:03]} Rf7 {[%emt 0:00:05]} 45. Re3 {[%emt 0:00:04]} Rc7 {[%emt 0:00:17]} 46. Ra8 {[%emt 0:00:01]} g6 {[%emt 0:00:14]} 47. hxg6+ {[%emt 0:00:02]} Kxg6 {[%emt 0:00:01]} 48. Ra6+ {[%emt 0:00:04]} Kg7 {[%emt 0:00:03]} 49. Kg3 {[%emt 0:00:01]} h5 {[%emt 0:00:02]} 50. f4 {[%emt 0:00:04]} hxg4 {[%emt 0:00:02]} 51. Kxg4 {[%emt 0:00:15]} Rdc5 {[%emt 0:00:09]} 52. Ra3 {[%emt 0:00:00]} Kf7 {[%emt 0:00:03]} 53. R3xa5 {[%emt 0:00:00]} Rxa5 {[%emt 0:00:03]} 54. Rxa5 {[%emt 0:00:00]} Kf6 {[%emt 0:00:04]} 55. Ra6+ {[%emt 0:00:00]} Kf7 {[%emt 0:00:01]} 56. Kg5 {[%emt 0:00:00]} Rb7 {[%emt 0:00:02]} 57. f5 {[%emt 0:00:00]} Rc7 {[%emt 0:00:03]} 58. Rf6+ {[%emt 0:00:00]} Kg7 {[%emt 0:00:02]} 59. Rg6+ {[%emt 0:00:00]} Kf7 {[%emt 0:00:01]} 60. Rh6 {[%emt 0:00:01]} Rc1 {[%emt 0:00:05]} 61. Rh7+ {[%emt 0:00:02]} Kg8 {[%emt 0:00:01]} 62. Re7 {[%emt 0:00:02]} Rc6 {[%emt 0:00:10]} 63. Ra7 {[%emt 0:00:21]} Rb6 {[%emt 0:00:05]} 64. Re7 {[%emt 0:00:04]} Kf8 {[%emt 0:00:12]} 65. Rh7 {[%emt 0:00:01]} Kg8 {[%emt 0:00:01]} 66. Rd7 {[%emt 0:00:03]} Kf8 {[%emt 0:00:16]} 67. Rc7 {[%emt 0:00:03]} Ra6 {[%emt 0:00:02]} 68. Rc3 {[%emt 0:00:01]} Kf7 {[%emt 0:00:04]} 69. Rd3 {[%emt 0:00:02]} Ra7 {[%emt 0:00:50]} 70. Rh3 Ra6 {[%emt 0:00:00]} 71. Rh7+ {[%emt 0:00:02]} Kg8 {[%emt 0:00:00]} 72. Re7 {[%emt 0:00:06]} Kf8 {[%emt 0:00:00]} 73. Rc7 {[%emt 0:00:06]} Rb6 {[%emt 0:00:00]} 74. Rc4 {[%emt 0:00:02]} Kf7 {[%emt 0:00:00]} 75. Re4 {[%emt 0:00:02]} Ra6 {[%emt 0:00:00]} 76. Re5 {[%emt 0:00:03]} Rb6 {[%emt 0:00:00]} 77. Rd5 {[%emt 0:00:01]} Ra6 {[%emt 0:00:00]} 78. Rd7+ {[%emt 0:00:01]} Ke8 {[%emt 0:00:00]} 79. Rg7 {[%emt 0:00:03]} Kf8 {[%emt 0:00:00]} 80. Rg6 {[%emt 0:00:04]} Ra5 {[%emt 0:00:00]} 81. Rc6 {[%emt 0:00:09]} Kf7 {[%emt 0:00:00]} 82. Rd6 {[%emt 0:00:03]} Rb5 {[%emt 0:00:04]} 83. Rd7+ {[%emt 0:00:03]} Ke8 {[%emt 0:00:01]} 84. Rd6 {[%emt 0:00:02]} Kf7 {[%emt 0:00:01]} 85. Rc6 {[%emt 0:00:01]} Ra5 {[%emt 0:00:02]} 86. Rf6+ {[%emt 0:00:00]} Kg7 {[%emt 0:00:01]} 87. Re6 {[%emt 0:00:02]} Kf7 {[%emt 0:00:02]} 88. Rh6 {[%emt 0:00:01]} Kg7 {[%emt 0:00:08]} 89. Re6 {[%emt 0:00:04]} Kf7 {[%emt 0:00:03]} 90. Kf4 {[%emt 0:00:01]} Rb5 {[%emt 0:00:06]} 91. Re5 {[%emt 0:00:07]} Rb6 {[%emt 0:00:06]} 92. Kg5 {[%emt 0:00:02]} Ra6 {[%emt 0:00:02]} 93. Rc5 {[%emt 0:00:04]} Ra7 {[%emt 0:00:03]} 94. Rc6 {[%emt 0:00:01]} Rb7 {[%emt 0:00:03]} 95. Rh6 {[%emt 0:00:05]} Rb5 {[%emt 0:00:06]} 96. Rh7+ {[%emt 0:00:02]} Kg8 {[%emt 0:00:01]} 97. Re7 {[%emt 0:00:04]} Kf8 {[%emt 0:00:02]} 98. Re6 {[%emt 0:00:01]} Kf7 {[%emt 0:00:01]} 99. Rh6 {[%emt 0:00:01]} Kg7 {[%emt 0:00:06]} 100. Rc6 {[%emt 0:00:06]} Rb7 {[%emt 0:00:11]} 101. Rh6 {[%emt 0:00:06]} Rb5 {[%emt 0:00:02]} 102. Rg6+ {[%emt 0:00:02]} Kf7 {[%emt 0:00:02]} 103. Rf6+ {[%emt 0:00:09]} Kg7 {[%emt 0:00:01]} 104. Rd6 {[%emt 0:00:03]} Rb7 {[%emt 0:00:04]} 1/2-1/2

[Event "Polish University-ch Women 2024"]
[Site "Lublin"]
[Date "2024.02.24"]
[Round "7.1"]
[White "Sliwicka, Alicja"]
[Black "Antolak, Julia"]
[Result "1-0"]
[ECO "B80"]
[WhiteElo "2309"]
[BlackElo "2309"]
[Annotator "TA"]
[PlyCount "85"]
[EventDate "2024.02.22"]
[EventType "swiss"]
[EventCountry "POL"]
[SourceTitle "playchess.com"]
[Source "ChessBase"]
[SourceQuality "1"]
[TimeControl "600+3"]

{[%evp 9,85,18,31,14,21,-15,-5,-20,-10,-14,-12,-22,-13,-25,0,-30,15,0,0,-12,-16,-25,-13,0,94,94,88,-39,6,10,14,5,25,10,42,31,87,18,272,-7,0,0,0,0,0,-58,75,66,97,39,132,98,97,0,0,0,0,0,22,0,0,-66,-63,-54,348,348,354,350,311,287,1050,998,1974,1739,5490,5173,5331,802]} 1. e4 {[%emt 0:00:01]} c5 {[%emt 0:00:01]} 2. Nf3 {[%emt 0:00:02]} e6 {[%emt 0:00:00]} 3. d4 {[%emt 0:00:01]} cxd4 {[%emt 0:00:02]} 4. Nxd4 {[%emt 0:00:02]} Nf6 {[%emt 0:00:01]} 5. Nc3 {[%emt 0:00:02]} d6 {[%emt 0:00:00]} 6. Nb3 {[%emt 0:00:01] B80: Sizilianisch (Scheveninger System).} a6 {[%emt 0:00:26]} 7. Bd3 {[%emt 0:00:03]} b5 {[%emt 0:00:01]} 8. O-O {[%emt 0:00:10]} Bb7 {[%emt 0:00:02]} 9. Qe2 {[%emt 0:00:27]} Be7 {[%emt 0:00:14]} 10. f4 {[%emt 0:00:18]} Nbd7 {[%emt 0:00:41]} 11. Bd2 {[%emt 0:00:04]} Nc5 $146 {[%emt 0:00:32]} ({Predecessor:} 11... O-O 12. Rae1 Nc5 13. a3 Rc8 14. Kh1 Nfd7 15. Nd4 Nb6 16. Qh5 Bf6 17. Nf3 g6 {1-0 Shanava,K (2498)-Uskov,A (2376) Baku White Rook Cup 2023 (8)}) 12. e5 {[%emt 0:00:47]} Nd5 {[%emt 0:00:33]} 13. Ne4 {[%emt 0:01:05]} Nxd3 {[%emt 0:01:21]} 14. Qxd3 {[%emt 0:00:29]} O-O {[%emt 0:00:28]} 15. Na5 {[%emt 0:00:13]} Qb6+ {[%emt 0:00:38]} (15... dxe5 $5 16. fxe5 Rb8 $14) 16. Kh1 {[%emt 0:00:01] exd6 wäre nun fies.} Rad8 {[%emt 0:00:38]} (16... dxe5 $11 17. fxe5 Bc6) 17. Nxb7 $16 {[%emt 0:00:04]} (17. exd6 {ist interessant.} Bxd6 18. Nxd6 Rxd6 19. Nxb7 Qxb7 20. Bb4) 17... Qxb7 {[%emt 0:00:01]} 18. Qf3 {[%emt 0:00:50]} (18. Ba5 $16 Rd7 19. exd6 Bxd6 20. Nxd6 Rxd6 21. Bb4 Nxb4 (21... Nxf4 $2 22. Qg3 $18) 22. Qxd6 Nxc2 23. Rac1) 18... f5 {[%emt 0:01:15]} 19. exf6 {[%emt 0:00:08]} Bxf6 {[%emt 0:00:00]} 20. c3 {[%emt 0:00:47]} Qf7 {[%emt 0:00:33]} 21. Rae1 {[%emt 0:00:04]} Nb6 {[%emt 0:00:18]} 22. Bc1 {[%emt 0:00:58]} Rfe8 {[%emt 0:00:21] [#]} (22... Qd7 $14) 23. Qg3 {[%emt 0:00:19]} (23. Nxf6+ $1 $16 gxf6 24. Qc6) 23... d5 $2 {[%emt 0:00:27][%mdl 8192]} (23... Be7 $11) 24. Ng5 $2 {[%emt 0:00:30]} ({Der einzige Zug:} 24. Nxf6+ $18 Qxf6 25. f5) 24... Bxg5 {[%emt 0:00:01]} 25. fxg5 {[%emt 0:00:02]} Qg6 {[%emt 0:00:00]} 26. Qc7 {[%emt 0:00:09]} Nc4 {[%emt 0:00:01]} 27. Qc6 {[%emt 0:00:54]} (27. h4 $11) 27... Nd6 {[%emt 0:01:10]} (27... e5 $15 28. Qc5 e4) 28. Qxa6 {[%emt 0:00:04]} Qd3 {[%emt 0:00:30]} 29. Qa7 {[%emt 0:00:12]} ({Günstiger ist} 29. Qb6 $16) 29... Rf8 {[%emt 0:00:11]} ({Vorzuziehen ist} 29... Qc4 $14) 30. Rxf8+ {[%emt 0:00:36]} Rxf8 {[%emt 0:00:01]} 31. Qe3 {[%emt 0:00:28]} (31. Kg1 $1 $16 {[%cal Oa7e7] Zielt auf Qe7! ab.} Qc2 32. h4) 31... Rf1+ $11 {[%emt 0:00:46]} 32. Rxf1 {[%emt 0:00:01]} Qxf1+ {[%emt 0:00:01][%mdl 4096] Endspiel. KQB-KQN} 33. Qg1 {[%emt 0:00:01]} Qc4 {[%emt 0:00:01]} 34. a3 {[%emt 0:00:14]} Ne4 {[%emt 0:00:02]} 35. Bf4 {[%emt 0:00:45]} (35. Qe1 $11) 35... Qe2 $15 {[%emt 0:00:05] Weiss muss nun ...Nf2+ beachten.} 36. h3 {[%emt 0:00:19]} Qxb2 $2 {[%emt 0:00:12][%mdl 8192]} (36... e5 $1 $15 {behält die Oberhand.} 37. Bc1 Ng3+ 38. Kh2 Nf1+ 39. Kh1 Ng3+ 40. Kh2 Nf1+ 41. Kh1 Ng3+) 37. Qb6 $18 {[%emt 0:00:04]} Qxc3 {[%emt 0:00:14]} 38. Qxe6+ {[%emt 0:00:04]} ({Nicht} 38. Qxb5 Qa1+ 39. Kh2 Qxa3 $14) 38... Kf8 {[%emt 0:00:01]} 39. Qxd5 {[%emt 0:00:19]} Qe1+ $2 {[%emt 0:00:05]} (39... Qc4 40. Qd8+ Kf7) 40. Kh2 {[%emt 0:00:01] Qf5+ ist eine echte Drohung.} Qe2 {[%emt 0:00:04]} 41. Qf5+ {[%emt 0:00:05]} Ke8 {[%emt 0:00:04]} 42. Qe6+ {[%emt 0:00:08]} Kf8 {[%emt 0:00:01]} 43. Bd6+ {[%emt 0:00:02]} (43. g6 $142 hxg6 44. Bd6+ (44. Qxg6 Nf6 $16) 44... Nxd6 45. Qxe2) 1-0

[Event "Polish University-ch Women 2024"]
[Site "Lublin"]
[Date "2024.02.24"]
[Round "7.2"]
[White "Cieslak, Wiktoria"]
[Black "Czarnecka, Lidia"]
[Result "0-1"]
[ECO "B48"]
[WhiteElo "1868"]
[BlackElo "2034"]
[Annotator "NA"]
[PlyCount "98"]
[EventDate "2024.02.22"]
[EventType "swiss"]
[EventCountry "POL"]
[SourceTitle "playchess.com"]
[Source "ChessBase"]
[SourceQuality "1"]
[TimeControl "600+3"]

1. e4 {[%emt 0:00:01]} c5 {[%emt 0:00:00]} 2. Nf3 {[%emt 0:00:01]} e6 {[%emt 0:00:01]} 3. d4 {[%emt 0:00:02]} cxd4 {[%emt 0:00:01]} 4. Nxd4 {[%emt 0:00:01]} Nc6 {[%emt 0:00:01]} 5. Nc3 {[%emt 0:00:06]} Qc7 {[%emt 0:00:01]} 6. Be3 {[%emt 0:00:04]} a6 {[%emt 0:00:03]} 7. Be2 {[%emt 0:00:08]} Nf6 {[%emt 0:00:02]} 8. O-O {[%emt 0:00:04]} Be7 {[%emt 0:00:02]} 9. Qd2 {[%emt 0:00:15]} O-O {[%emt 0:00:04]} 10. a3 {[%emt 0:00:06]} d6 {[%emt 0:00:09]} 11. Kh1 {[%emt 0:00:16]} Ne5 {[%emt 0:00:22]} 12. f4 {[%emt 0:00:10]} Nc4 {[%emt 0:00:00]} 13. Bxc4 {[%emt 0:00:11]} Qxc4 {[%emt 0:00:02]} 14. b3 {[%emt 0:00:17]} Qc7 {[%emt 0:00:08]} 15. Qd3 {[%emt 0:00:18]} b5 {[%emt 0:00:11]} 16. Nce2 {[%emt 0:00:32]} Bb7 {[%emt 0:00:03]} 17. Ng3 {[%emt 0:00:01]} Rac8 {[%emt 0:00:05]} 18. Rac1 {[%emt 0:00:04]} d5 {[%emt 0:00:17]} 19. e5 {[%emt 0:00:06]} Ne4 {[%emt 0:00:01]} 20. Nxe4 {[%emt 0:00:11]} dxe4 {[%emt 0:00:01]} 21. Qe2 {[%emt 0:00:20]} Bxa3 {[%emt 0:00:01]} 22. Ra1 {[%emt 0:00:21]} Bb2 {[%emt 0:00:29]} 23. Ra2 {[%emt 0:00:01]} Bc3 {[%emt 0:00:01]} 24. Qf2 {[%emt 0:00:25]} Rfd8 {[%emt 0:00:15]} 25. Ne2 {[%emt 0:00:02]} Rd7 {[%emt 0:00:48]} 26. Ng3 {[%emt 0:00:12]} g6 {[%emt 0:01:37]} 27. Ne2 {[%emt 0:00:25]} Bb4 {[%emt 0:00:05]} 28. h3 {[%emt 0:00:58]} Bc5 {[%emt 0:00:33]} 29. Rc1 {[%emt 0:00:07]} Bxe3 {[%emt 0:02:02]} 30. Qxe3 {[%emt 0:00:02]} Qc5 {[%emt 0:00:00]} 31. Qxc5 {[%emt 0:00:34]} Rxc5 {[%emt 0:00:01]} 32. c4 {[%emt 0:00:01]} Rd3 {[%emt 0:00:47]} 33. Rb1 {[%emt 0:00:04]} Kg7 {[%emt 0:00:57]} 34. Kg1 {[%emt 0:01:25]} f6 {[%emt 0:00:10]} 35. exf6+ {[%emt 0:00:21]} Kxf6 {[%emt 0:00:02]} 36. cxb5 {[%emt 0:00:03]} Rxb5 {[%emt 0:00:02]} 37. b4 {[%emt 0:00:02]} e5 {[%emt 0:00:51]} 38. fxe5+ {[%emt 0:00:02]} Kxe5 {[%emt 0:00:01]} 39. Kf2 {[%emt 0:00:20]} Rb6 {[%emt 0:00:32]} 40. Ra5+ {[%emt 0:00:01]} Rd5 {[%emt 0:00:01]} 41. Ra3 {[%emt 0:00:08]} Rdb5 {[%emt 0:00:17]} 42. Ra4 {[%emt 0:00:37]} a5 {[%emt 0:00:20]} 43. bxa5 {[%emt 0:00:04]} Rxb1 {[%emt 0:00:01]} 44. axb6 {[%emt 0:00:01]} Rxb6 {[%emt 0:00:01]} 45. Ra5+ {[%emt 0:00:03]} Kf6 {[%emt 0:00:04]} 46. Ke3 {[%emt 0:00:17]} Rb3+ {[%emt 0:00:07]} 47. Kf4 {[%emt 0:00:04]} h6 {[%emt 0:00:13]} 48. h4 {[%emt 0:00:13]} Rd3 {[%emt 0:00:10]} 49. g4 {[%emt 0:00:10]} Rf3# {[%emt 0:00:02]} 0-1

[Event "Polish University-ch Women 2024"]
[Site "Lublin"]
[Date "2024.02.24"]
[Round "7.3"]
[White "Kubicka, Anna"]
[Black "Shaban, Aliaksandra"]
[Result "1-0"]
[ECO "B03"]
[WhiteElo "2278"]
[BlackElo "1708"]
[Annotator "TA"]
[PlyCount "53"]
[EventDate "2024.02.22"]
[EventType "swiss"]
[EventCountry "POL"]
[SourceTitle "playchess.com"]
[Source "ChessBase"]
[SourceQuality "1"]
[TimeControl "600+3"]

{[%evp 14,53,45,11,29,18,35,4,73,68,79,66,81,75,83,76,83,81,101,104,144,63,137,140,130,125,366,254,446,437,429,446,375,282,264,195,191,186,357,337,29989,29990]} 1. e4 {[%emt 0:00:02][%cal Be2e4,Be4e5][%mdl 32]} Nf6 {[%emt 0:00:03]} 2. e5 {[%emt 0:00:03]} Nd5 {[%emt 0:00:01]} 3. c4 {[%emt 0:00:02]} Nb6 {[%emt 0:00:01]} 4. d4 {[%emt 0:00:02]} d6 {[%emt 0:00:01]} 5. exd6 {[%emt 0:00:02]} cxd6 {[%emt 0:00:01]} 6. Nc3 {[%emt 0:00:04]} g6 {[%emt 0:00:01]} 7. Be3 {[%emt 0:00:09]} Bg7 {[%emt 0:00:01]} 8. Bd3 {[%emt 0:00:08]} O-O {[%emt 0:00:02]} 9. Nge2 {[%emt 0:00:13]} Nc6 {[%emt 0:00:01]} 10. b3 {[%emt 0:00:11]} f5 {[%emt 0:00:39]} (10... d5 $11 {remains equal.}) 11. d5 $16 {[%emt 0:02:13]} Ne5 {[%emt 0:00:53][%cal Of5f4]} 12. Rc1 {[%emt 0:00:17]} Nbd7 {[%emt 0:00:51]} 13. Bb1 {[%emt 0:00:38]} Nf6 {[%emt 0:01:05]} 14. h3 {[%emt 0:00:10]} Re8 {[%emt 0:01:16]} 15. O-O {[%emt 0:00:14]} Nf7 {[%emt 0:00:15]} 16. Nd4 {[%emt 0:01:15]} Bd7 {[%emt 0:01:33]} 17. Nce2 {[%emt 0:00:24]} (17. Ne6 $16 Bxe6 18. dxe6) 17... Qc8 {[%emt 0:00:19] [#]} (17... e6 $14) 18. Nf4 $1 {[%emt 0:00:23]} Nd8 {[%emt 0:00:23]} 19. Re1 {[%emt 0:00:13] White is much more active.} g5 $2 {[%emt 0:01:28] Black cannot hold the game after this.} (19... a6 $16 20. a4 e5) 20. Nfe6 {[%emt 0:00:16]} Bxe6 $2 {[%emt 0:00:29]} (20... Nxe6 21. dxe6 Bxe6 22. Bxg5 Bd7) 21. dxe6 {[%emt 0:00:48]} f4 {[%emt 0:00:14] Black is weak on the light squares} 22. Bd2 {[%emt 0:00:05]} Nc6 {[%emt 0:00:08]} 23. Nf5 {[%emt 0:00:25] [#] Hoping for h4.} Ne5 {[%emt 0:00:09]} 24. Nxg7 {[%emt 0:01:21]} Kxg7 {[%emt 0:00:02]} 25. Bf5 {[%emt 0:00:05][%cal Oh3h4] h4! would now be deadly.} h6 $2 {[%emt 0:00:16]} (25... Ng6 26. Bc3 Kh6 27. Bxf6 exf6 28. Qxd6 a5) 26. Bc3 $18 {[%emt 0:00:05]} Nc6 $2 {[%emt 0:00:50]} (26... b6 $18 27. b4 Qb8) 27. Qh5 {[%emt 0:00:30] Weighted Error Value: White=0.28 (precise) /Black=0.86.  Loses game:     	---       	Black=1      Mistake:       	White=1     	Black=5      Inaccurate:     	White=2     	Black=1      OK:         	White=8     	Black=4      Best:        	White=1     	Black=1} 1-0

[Event "Polish University-ch Women 2024"]
[Site "Lublin"]
[Date "2024.02.24"]
[Round "7.4"]
[White "Parol, Pola"]
[Black "Kucharska, Honorata"]
[Result "1/2-1/2"]
[ECO "C09"]
[WhiteElo "2030"]
[BlackElo "2137"]
[Annotator "RC"]
[PlyCount "99"]
[EventDate "2024.02.22"]
[EventType "swiss"]
[EventCountry "POL"]
[SourceTitle "playchess.com"]
[Source "ChessBase"]
[SourceQuality "1"]
[TimeControl "600+3"]

1. e4 {[%emt 0:00:01]} e6 {[%emt 0:00:03]} 2. d4 {[%emt 0:00:02]} d5 {[%emt 0:00:01]} 3. Nd2 {[%emt 0:00:01]} c5 {[%emt 0:00:12]} 4. exd5 {[%emt 0:00:08]} exd5 {[%emt 0:00:02]} 5. Bb5+ {[%emt 0:00:08]} Nc6 {[%emt 0:00:01]} 6. Ngf3 {[%emt 0:00:06]} Bd6 {[%emt 0:00:08]} 7. O-O {[%emt 0:00:10]} Nge7 {[%emt 0:00:02]} 8. dxc5 {[%emt 0:00:28]} Bxc5 {[%emt 0:00:02]} 9. Nb3 {[%emt 0:00:01]} Bd6 {[%emt 0:00:06]} 10. h3 {[%emt 0:00:26]} O-O {[%emt 0:00:05]} 11. Bg5 {[%emt 0:00:10]} Qc7 {[%emt 0:00:56]} 12. Re1 {[%emt 0:00:18]} h6 {[%emt 0:00:41]} 13. Be3 {[%emt 0:00:43]} Bf5 {[%emt 0:00:22]} 14. Nbd4 {[%emt 0:00:16]} Bg6 {[%emt 0:00:15]} 15. c3 {[%emt 0:00:16]} Rad8 {[%emt 0:00:21]} 16. Bd3 {[%emt 0:00:14]} Bxd3 {[%emt 0:00:40]} 17. Qxd3 {[%emt 0:00:02]} Qd7 {[%emt 0:00:05]} 18. Qd2 {[%emt 0:00:46]} Ng6 {[%emt 0:00:16]} 19. Rad1 {[%emt 0:00:48]} Bb8 {[%emt 0:00:42]} 20. Ne2 {[%emt 0:01:02]} Nce5 {[%emt 0:00:44]} 21. Nxe5 {[%emt 0:01:06]} Nxe5 {[%emt 0:01:03]} 22. Qd4 {[%emt 0:00:18]} Nc4 {[%emt 0:00:39]} 23. Bc1 {[%emt 0:00:01]} Qf5 {[%emt 0:00:54]} 24. Qd3 {[%emt 0:00:46]} Qf6 {[%emt 0:00:12]} 25. Nd4 {[%emt 0:00:20]} Rfe8 {[%emt 0:00:41]} 26. Qf5 {[%emt 0:00:02]} Rxe1+ {[%emt 0:01:28]} 27. Rxe1 {[%emt 0:00:02]} Qxf5 {[%emt 0:00:03]} 28. Nxf5 {[%emt 0:00:01]} Ne5 {[%emt 0:00:06]} 29. Rd1 {[%emt 0:00:12]} Nc6 {[%emt 0:00:13]} 30. Be3 {[%emt 0:00:07]} Be5 {[%emt 0:00:11]} 31. Nd4 {[%emt 0:00:42]} Bxd4 {[%emt 0:00:02]} 32. Bxd4 {[%emt 0:00:02]} f6 {[%emt 0:00:05]} 33. Kf1 {[%emt 0:00:14]} Kf7 {[%emt 0:00:01]} 34. Bc5 {[%emt 0:00:08]} a6 {[%emt 0:00:23]} 35. Bb6 {[%emt 0:00:02]} Rd7 {[%emt 0:00:00]} 36. Bd4 {[%emt 0:00:27]} g5 {[%emt 0:00:00]} 37. Bc5 {[%emt 0:00:09]} h5 {[%emt 0:00:00]} 38. Ke2 {[%emt 0:00:04]} Ne5 {[%emt 0:00:00]} 39. b3 {[%emt 0:00:11]} g4 {[%emt 0:00:00]} 40. hxg4 {[%emt 0:00:02]} hxg4 {[%emt 0:00:01]} 41. Bd4 {[%emt 0:00:06]} Ng6 {[%emt 0:00:02]} 42. g3 {[%emt 0:00:04]} Ne7 {[%emt 0:00:03]} 43. Kd3 {[%emt 0:00:06]} Nf5 {[%emt 0:00:02]} 44. Rh1 {[%emt 0:00:06]} Kg6 {[%emt 0:00:09]} 45. Rh8 {[%emt 0:00:07]} Nd6 {[%emt 0:00:01]} 46. Rg8+ {[%emt 0:00:05]} Kf5 {[%emt 0:00:05]} 47. Rf8 {[%emt 0:00:03]} Ne4 {[%emt 0:00:01]} 48. Rh8 {[%emt 0:00:10]} Kg6 {[%emt 0:00:06]} 49. Rg8+ {[%emt 0:00:02]} Kf5 {[%emt 0:00:01]} 50. Rh8 {[%emt 0:00:00]} 1/2-1/2